fUSD/lending_fUSD_20240620
["ID","MTS","AMOUNT","RATE_DAILY","PERIOD"]
[329941004,1718850256152,-496.40062002,0.00013698,2]
[329941005,1718850256174,-506.34029992,0.00013698,2]
[329941006,1718850256429,-501.88955891,0.00013698,2]
[329941007,1718850256452,-1152.3,0.00013698,2]
[329941008,1718850256474,-514.35893658,0.00013698,2]
[329941009,1718850256496,-907.47,0.00013698,2]
[329941010,1718850256518,-500.0,0.00013698,2]
[329941011,1718850256540,-500.0,0.00013698,2]
[329941012,1718850256562,-500.0,0.00013698,2]
[329941013,1718850256586,-500.0,0.00013698,2]
[329941014,1718850256607,-501.51667701,0.00013698,2]
[329941015,1718850256629,-2000.0,0.00013698,2]
[329941016,1718850256651,-500.0,0.00013698,2]
[329941017,1718850256674,-1077.9,0.00013698,2]
[329941018,1718850256695,-355.47107373,0.00013698,2]
[329941019,1718850256719,-500.0,0.00013698,2]
[329941020,1718850256741,-814.95,0.00013698,2]
[329941021,1718850256762,-1390.33,0.00013698,2]
[329941022,1718850256787,-200.0,0.00013698,2]
[329941023,1718850256810,-566.45,0.00013698,2]
[329941024,1718850256833,-539.37504759,0.00013698,2]
[329941025,1718850256854,-504.34747881,0.00013698,2]
[329941026,1718850256876,-308.7550186,0.00013698,2]
[329941027,1718850256899,-307.79922279,0.00013698,2]
[329941028,1718850256922,-500.0,0.00013698,2]
[329941029,1718850256944,-500.48541037,0.00013698,2]
[329941030,1718850256967,-507.39002696,0.00013698,2]
[329941031,1718850256990,-536.46,0.00013698,2]
[329941032,1718850257015,-500.0,0.00013698,2]
[329941033,1718850257037,-500.0,0.00013698,2]
[329941034,1718850257062,-709.49,0.00013698,2]
[329941035,1718850257087,-500.0,0.00013698,2]
[329941036,1718850257109,-400.0,0.00013698,2]
[329941037,1718850257131,-908.16,0.00013698,2]
[329941038,1718850257158,-500.0,0.00013698,2]
[329941039,1718850257181,-500.0,0.00013698,2]
[329941040,1718850257203,-507.84702053,0.00013698,2]
[329941041,1718850257226,-508.58542464,0.00013698,2]
[329941042,1718850257248,-497.80334938,0.00013698,2]
[329941043,1718850257269,-550.16,0.00013698,2]
[329941044,1718850257290,-500.0,0.00013698,2]
[329941045,1718850257311,-500.0,0.00013698,2]
[329941046,1718850257334,-500.0,0.00013698,2]
[329941047,1718850257355,-500.0,0.00013698,2]
[329941048,1718850257377,-1064.79,0.00013698,2]
[329941049,1718850257399,-378.52,0.00013698,2]
[329941050,1718850257426,-500.0,0.00013698,2]
[329941051,1718850257448,-732.55,0.00013698,2]
[329941052,1718850257470,-505.33336455,0.00013698,2]
[329941053,1718850257491,-500.0,0.00013698,2]
[329941054,1718850257513,-500.0,0.00013698,2]
[329941055,1718850257535,-502.79139438,0.00013698,2]
[329941056,1718850257556,-480.91572108,0.00013698,2]
[329941057,1718850257581,-497.0,0.00013698,2]
[329941058,1718850257608,-500.0,0.00013698,2]
[329941059,1718850257629,-500.0,0.00013698,2]
[329941060,1718850257651,-1292.66,0.00013698,2]
[329941061,1718850257671,-500.0,0.00013698,2]
[329941062,1718850257692,-863.69,0.00013698,2]
[329941063,1718850257714,-1303.0,0.00013698,2]
[329941064,1718850257736,-500.0,0.00013698,2]
[329941065,1718850257759,-500.0,0.00013698,2]
[329941066,1718850257781,-500.79506525,0.00013698,2]
[329941067,1718850257803,-796.42,0.00013698,2]
[329941068,1718850257829,-500.0,0.00013698,2]
[329941069,1718850257850,-725.68,0.00013698,2]
[329941070,1718850257871,-500.0,0.00013698,2]
[329941071,1718850257894,-500.0,0.00013698,2]
[329941072,1718850257916,-505.96236516,0.00013698,2]
[329941073,1718850257940,-500.0,0.00013698,2]
[329941074,1718850257964,-508.34016941,0.00013698,2]
[329941075,1718850257987,-507.4422862,0.00013698,2]
[329941076,1718850258008,-504.53553416,0.00013698,2]
[329941077,1718850258030,-505.9820185,0.00013698,2]
[329941078,1718850258057,-500.0,0.00013698,2]
[329941079,1718850258082,-505.0029793,0.00013698,2]
[329941080,1718850258106,-509.00967982,0.00013698,2]
[329941081,1718850258128,-500.0,0.00013698,2]
[329941082,1718850258152,-604.22,0.00013698,2]
[329941083,1718850258175,-470.82681861,0.00013698,2]
[329941084,1718850258196,-500.0,0.00013698,2]
[329941085,1718850258217,-500.0,0.00013698,2]
[329941086,1718850258239,-509.7478436,0.00013698,2]
[329941087,1718850258261,-588.54786709,0.00013698,2]
[329941088,1718850258282,-511.17395108,0.00013698,2]
[329941089,1718850258305,-511.96523786,0.00013698,2]
[329941090,1718850258328,-500.0,0.00013698,2]
[329941091,1718850258350,-500.0,0.00013698,2]
[329941092,1718850258371,-500.0,0.00013698,2]
[329941093,1718850258393,-548.23214359,0.00013698,2]
[329941094,1718850258416,-865.87,0.00013698,2]
[329941095,1718850258438,-503.23663756,0.00013698,2]
[329941096,1718850258460,-500.0,0.00013698,2]
[329941097,1718850258482,-500.0,0.00013698,2]
[329941098,1718850258504,-1250.94,0.00013698,2]
[329941099,1718850258527,-1082.67,0.00013698,2]
[329941100,1718850258548,-500.0,0.00013698,2]
[329941101,1718850258570,-504.03894693,0.00013698,2]
[329941102,1718850258592,-1148.65,0.00013698,2]
[329941103,1718850258614,-500.0,0.00013698,2]
[329941104,1718850258635,-502.61948823,0.00013698,2]
[329941105,1718850258656,-786.68,0.00013698,2]
[329941106,1718850258679,-500.0,0.00013698,2]
[329941107,1718850258700,-712.83,0.00013698,2]
[329941108,1718850258722,-578.5,0.00013698,2]
[329941109,1718850258743,-500.0,0.00013698,2]
[329941110,1718850258764,-500.0,0.00013698,2]
[329941111,1718850258785,-500.0,0.00013698,2]
[329941112,1718850258808,-500.0,0.00013698,2]
[329941113,1718850258830,-509.30204591,0.00013698,2]
[329941114,1718850258853,-500.0,0.00013698,2]
[329941115,1718850258877,-500.0,0.00013698,2]
[329941116,1718850258909,-677.3,0.00013698,2]
[329941117,1718850258936,-1325.3,0.00013698,2]
[329941118,1718850258961,-675.65,0.00013698,2]
[329941119,1718850258984,-500.0,0.00013698,2]
[329941120,1718850259007,-500.0,0.00013698,2]
[329941121,1718850259030,-1268.33,0.00013698,2]
[329941122,1718850259053,-500.0,0.00013698,2]
[329941123,1718850259081,-500.0,0.00013698,2]
[329941124,1718850259104,-500.0,0.00013698,2]
[329941125,1718850259128,-5381.07,0.00013698,2]
[329941126,1718850259155,-500.0,0.00013698,2]
[329941127,1718850259180,-500.0,0.00013698,2]
[329941128,1718850259203,-815.22,0.00013698,2]
[329941129,1718850259225,-500.0,0.00013698,2]
[329941130,1718850259248,-500.0,0.00013698,2]
[329941131,1718850259272,-1165.19,0.00013698,2]
[329941132,1718850259295,-506.97619793,0.00013698,2]
[329941133,1718850259318,-500.0,0.00013698,2]
[329941134,1718850259347,-537.16306269,0.00013698,2]
[329941135,1718850259372,-509.66022273,0.00013698,2]
[329941136,1718850259395,-500.0,0.00013698,2]
[329941137,1718850259419,-370.63218275,0.00013698,2]
[329941138,1718850259448,-617.91,0.00013698,2]
[329941139,1718850259473,-414.97879614,0.00013698,2]
[329941140,1718850259495,-707.98,0.00013698,2]
[329941141,1718850259518,-502.98472868,0.00013698,2]
[329941142,1718850259542,-500.0,0.00013698,2]
[329941143,1718850259564,-576.3,0.00013698,2]
[329941144,1718850259593,-861.23,0.00013698,2]
[329941145,1718850259616,-604.97,0.00013698,2]
[329941146,1718850259638,-500.0,0.00013698,2]
[329941147,1718850259661,-500.0,0.00013698,2]
[329941148,1718850259690,-1322.64,0.00013698,2]
[329941149,1718850259713,-511.06203592,0.00013698,2]
[329941150,1718850259736,-500.0,0.00013698,2]
[329941151,1718850259758,-1031.53,0.00013698,2]
[329941152,1718850259781,-500.0,0.00013698,2]
[329941153,1718850259804,-500.0,0.00013698,2]
[329941154,1718850259834,-500.0,0.00013698,2]
[329941155,1718850259860,-500.0,0.00013698,2]
[329941156,1718850259884,-500.0,0.00013698,2]
[329941157,1718850259908,-568.24,0.00013698,2]
[329941158,1718850259936,-500.0,0.00013698,2]
[329941159,1718850259959,-514.04760246,0.00013698,2]
[329941160,1718850259986,-500.0,0.00013698,2]
[329941161,1718850260010,-721.92,0.00013698,2]
[329941162,1718850260034,-500.0,0.00013698,2]
[329941163,1718850260061,-639.28,0.00013698,2]
[329941164,1718850260088,-500.0,0.00013698,2]
[329941165,1718850260113,-500.0,0.00013698,2]
[329941166,1718850260136,-511.9143448,0.00013698,2]
[329941167,1718850260163,-728.06,0.00013698,2]
[329941168,1718850260185,-256.01755862,0.00013698,2]
[329941169,1718850260207,-500.0,0.00013698,2]
[329941170,1718850260230,-499.9611107,0.00013698,2]
[329941171,1718850260253,-545.68,0.00013698,2]
[329941172,1718850260277,-558.58,0.00013698,2]
[329941173,1718850260300,-904.84,0.00013698,2]
[329941174,1718850260324,-502.5359924,0.00013698,2]
[329941175,1718850260346,-1289.45,0.00013698,2]
[329941176,1718850260369,-500.0,0.00013698,2]
[329941177,1718850260394,-912.89,0.00013698,2]
[329941178,1718850260419,-500.0,0.00013698,2]
[329941179,1718850260441,-882.18,0.00013698,2]
[329941180,1718850260463,-965.17,0.00013698,2]
[329941181,1718850260487,-498.27701784,0.00013698,2]
[329941182,1718850260511,-510.15650161,0.00013698,2]
[329941183,1718850260533,-303.70370984,0.00013698,2]
[329941184,1718850260555,-504.23739763,0.00013698,2]
[329941185,1718850260581,-833.23,0.00013698,2]
[329941186,1718850260934,-769.94,0.00013698,2]
[329941187,1718850260956,-500.0,0.00013698,2]
[329941188,1718850260978,-500.72524231,0.00013698,2]
[329941189,1718850261000,-500.0,0.00013698,2]
[329941190,1718850261022,-500.0,0.00013698,2]
[329941191,1718850261044,-506.72339402,0.00013698,2]
[329941192,1718850261069,-501.9273291,0.00013698,2]
[329941193,1718850261100,-500.0,0.00013698,2]
[329941194,1718850261123,-577.67254559,0.00013698,2]
[329941195,1718850261149,-1794.63,0.00013698,2]
[329941196,1718850261173,-294.54383049,0.00013698,2]
[329941197,1718850261195,-502.63105165,0.00013698,2]
[329941198,1718850261216,-500.0,0.00013698,2]
[329941199,1718850261238,-501.52577029,0.00013698,2]
[329941200,1718850261259,-500.0,0.00013698,2]
[329941201,1718850261281,-522.52,0.00013698,2]
[329941202,1718850261307,-406.91974295,0.00013698,2]
[329941203,1718850261331,-500.0,0.00013698,2]
[329941204,1718850261353,-505.81671316,0.00013698,2]
[329941205,1718850261374,-1632.62,0.00013698,2]
[329941206,1718850261395,-522.95257352,0.00013698,2]
[329941207,1718850261416,-516.15,0.00013698,2]
[329941208,1718850261438,-531.84,0.00013698,2]
[329941209,1718850261459,-521.36685283,0.00013698,2]
[329941210,1718850261480,-650.14,0.00013698,2]
[329941211,1718850261501,-505.13443722,0.00013698,2]
[329941212,1718850261522,-505.67109706,0.00013698,2]
[329941213,1718850261543,-500.73717081,0.00013698,2]
[329941214,1718850261563,-1293.34,0.00013698,2]
[329941215,1718850261587,-743.0,0.00013698,2]
[329941216,1718850261609,-500.0,0.00013698,2]
[329941217,1718850261630,-532.61755231,0.00013698,2]
[329941218,1718850261651,-500.0,0.00013698,2]
[329941219,1718850261674,-504.46389037,0.00013698,2]
[329941220,1718850261696,-500.0,0.00013698,2]
[329941221,1718850261717,-500.0,0.00013698,2]
[329941222,1718850261738,-501.51968814,0.00013698,2]
[329941223,1718850261760,-500.0,0.00013698,2]
[329941224,1718850261781,-505.51454144,0.00013698,2]
[329941225,1718850261802,-991.13,0.00013698,2]
[329941226,1718850261827,-978.76,0.00013698,2]
[329941227,1718850261849,-500.0,0.00013698,2]
[329941228,1718850261871,-943.22,0.00013698,2]
[329941229,1718850261893,-176.84812972,0.00013698,2]
[329941230,1718850261914,-507.07190208,0.00013698,2]
[329941231,1718850261935,-501.91026982,0.00013698,2]
[329941232,1718850261956,-1586.78,0.00013698,2]
[329941233,1718850261977,-501.01608736,0.00013698,2]
[329941234,1718850261998,-500.0,0.00013698,2]
[329941235,1718850262020,-500.0,0.00013698,2]
[329941236,1718850262042,-500.0,0.00013698,2]
[329941237,1718850262068,-500.0,0.00013698,2]
[329941238,1718850262092,-529.74804889,0.00013698,2]
[329941239,1718850262114,-508.97199086,0.00013698,2]
[329941240,1718850262138,-798.88,0.00013698,2]
[329941241,1718850262160,-505.91905339,0.00013698,2]
[329941242,1718850262182,-496.05923904,0.00013698,2]
[329941243,1718850262204,-500.0,0.00013698,2]
[329941244,1718850262229,-637.12,0.00013698,2]
[329941245,1718850262252,-509.76165069,0.00013698,2]
[329941246,1718850262273,-505.72577597,0.00013698,2]
[329941247,1718850262295,-500.0,0.00013698,2]
[329941248,1718850262316,-989.77,0.00013698,2]
[329941249,1718850262340,-501.22379735,0.00013698,2]
[329941250,1718850262362,-593.56,0.00013698,2]
[329941251,1718850262383,-505.30572125,0.00013698,2]
[329941252,1718850262406,-500.0,0.00013698,2]
[329941253,1718850262427,-500.0,0.00013698,2]
[329941254,1718850262450,-850.27,0.00013698,2]
[329941255,1718850262471,-500.0,0.00013698,2]
[329941256,1718850262492,-1361.5,0.00013698,2]
[329941257,1718850262513,-578.85283069,0.00013698,2]
[329941258,1718850262534,-504.52388397,0.00013698,2]
[329941259,1718850262555,-865.99,0.00013698,2]
[329941260,1718850262578,-500.0,0.00013698,2]
[329941261,1718850262600,-500.0,0.00013698,2]
[329941262,1718850262620,-500.0,0.00013698,2]
[329941263,1718850262643,-500.0,0.00013698,2]
[329941264,1718850262664,-341.10958623,0.00013698,2]
[329941265,1718850262686,-500.0,0.00013698,2]
[329941266,1718850262707,-1135.57,0.00013698,2]
[329941267,1718850262728,-493.97389696,0.00013698,2]
[329941268,1718850262749,-501.29722034,0.00013698,2]
[329941269,1718850262770,-500.0,0.00013698,2]
[329941270,1718850262791,-506.58826208,0.00013698,2]
[329941271,1718850262813,-500.0,0.00013698,2]
[329941272,1718850262834,-500.0,0.00013698,2]
[329941273,1718850262855,-310.63147543,0.00013698,2]
[329941274,1718850262876,-504.28996174,0.00013698,2]
[329941275,1718850262904,-1084.58,0.00013698,2]
[329941276,1718850262927,-500.0,0.00013698,2]
[329941277,1718850262949,-337.262,0.00013698,2]
[329941278,1718850262976,-511.26805321,0.00013698,2]
[329941279,1718850263000,-500.0,0.00013698,2]
[329941280,1718850263023,-500.0,0.00013698,2]
[329941281,1718850263047,-814.15,0.00013698,2]
[329941282,1718850263074,-501.21863449,0.00013698,2]
[329941283,1718850263097,-502.87383349,0.00013698,2]
[329941284,1718850263119,-502.08592525,0.00013698,2]
[329941285,1718850263142,-500.0,0.00013698,2]
[329941286,1718850263164,-507.76377875,0.00013698,2]
[329941287,1718850263186,-2119.19,0.00013698,2]
[329941288,1718850263207,-503.63547859,0.00013698,2]
[329941289,1718850263228,-542.63,0.00013698,2]
[329941290,1718850263250,-542.39877645,0.00013698,2]
[329941291,1718850263272,-2421.93,0.00013698,2]
[329941292,1718850263294,-800.21,0.00013698,2]
[329941293,1718850263315,-501.69703245,0.00013698,2]
[329941294,1718850263340,-505.23715193,0.00013698,2]
[329941295,1718850263361,-500.0,0.00013698,2]
[329941296,1718850263383,-1610.64,0.00013698,2]
[329941297,1718850263405,-500.0,0.00013698,2]
[329941298,1718850263427,-500.0,0.00013698,2]
[329941299,1718850263449,-500.0,0.00013698,2]
[329941300,1718850263471,-503.72732119,0.00013698,2]
[329941301,1718850263493,-996.76,0.00013698,2]
[329941302,1718850263516,-500.0,0.00013698,2]
[329941303,1718850263538,-500.0,0.00013698,2]
[329941304,1718850263559,-1424.83,0.00013698,2]
[329941305,1718850263582,-500.0,0.00013698,2]
[329941306,1718850263604,-2799.98,0.00013698,2]
[329941307,1718850263627,-500.0,0.00013698,2]
[329941308,1718850263650,-500.0,0.00013698,2]
[329941309,1718850263672,-500.0,0.00013698,2]
[329941310,1718850263693,-507.27464428,0.00013698,2]
[329941311,1718850263718,-552.66,0.00013698,2]
[329941312,1718850263740,-500.0,0.00013698,2]
[329941313,1718850263763,-551.63,0.00013698,2]
[329941314,1718850263789,-501.71994042,0.00013698,2]
[329941315,1718850263812,-1168.85,0.00013698,2]
[329941316,1718850263837,-2632.81,0.00013698,2]
[329941317,1718850263862,-500.0,0.00013698,2]
[329941318,1718850263889,-501.22465646,0.00013698,2]
[329941319,1718850263911,-920.06,0.00013698,2]
[329941320,1718850263933,-500.0,0.00013698,2]
[329941321,1718850263954,-503.45396054,0.00013698,2]
[329941322,1718850263976,-507.70024175,0.00013698,2]
[329941323,1718850263999,-500.0,0.00013698,2]
[329941324,1718850264035,-504.24839542,0.00013698,2]
[329941325,1718850264064,-508.30596322,0.00013698,2]
[329941326,1718850264090,-500.0,0.00013698,2]
[329941327,1718850264114,-1584.2,0.00013698,2]
[329941328,1718850264140,-500.0,0.00013698,2]
[329941329,1718850264165,-1256.44,0.00013698,2]
[329941330,1718850264188,-500.0,0.00013698,2]
[329941331,1718850264212,-500.0,0.00013698,2]
[329941332,1718850264236,-693.57,0.00013698,2]
[329941333,1718850264260,-532.75,0.00013698,2]
[329941334,1718850264283,-500.0,0.00013698,2]
[329941335,1718850264306,-1397.41,0.00013698,2]
[329941336,1718850264331,-3927.71,0.00013698,2]
[329941337,1718850264354,-586.2,0.00013698,2]
[329941338,1718850264377,-1345.4,0.00013698,2]
[329941339,1718850264401,-500.0,0.00013698,2]
[329941340,1718850264424,-500.0,0.00013698,2]
[329941341,1718850264449,-6256.51,0.00013698,2]
[329941342,1718850264471,-500.0,0.00013698,2]
[329941343,1718850264493,-472.21535679,0.00013698,2]
[329941344,1718850264515,-1764.08,0.00013698,2]
[329941345,1718850264538,-634.36,0.00013698,2]
[329941346,1718850264560,-3553.66,0.00013698,2]
[329941347,1718850264582,-500.0,0.00013698,2]
[329941348,1718850264604,-500.0,0.00013698,2]
[329941349,1718850264627,-1198.42,0.00013698,2]
[329941350,1718850264648,-1326.21,0.00013698,2]
[329941351,1718850264670,-2595.63,0.00013698,2]
[329941352,1718850264692,-500.0,0.00013698,2]
[329941353,1718850264713,-500.0,0.00013698,2]
[329941354,1718850264735,-500.0,0.00013698,2]
[329941355,1718850264765,-500.0,0.00013698,2]
[329941356,1718850264788,-503.45244256,0.00013698,2]
[329941357,1718850264815,-2336.34,0.00013698,2]
[329941358,1718850264841,-643.13,0.00013698,2]
[329941359,1718850264864,-518.21,0.00013698,2]
[329941360,1718850264887,-508.57925752,0.00013698,2]
[329941361,1718850264912,-500.0,0.00013698,2]
[329941362,1718850264935,-500.0,0.00013698,2]
[329941363,1718850264958,-507.72758223,0.00013698,2]
[329941364,1718850264982,-500.0,0.00013698,2]
[329941365,1718850265006,-700.48,0.00013698,2]
[329941366,1718850265029,-15174.35772793,0.00013698,2]
[329941367,1718850265378,-500.0,0.00013698,2]
[329941368,1718850265443,-500.0,0.00013698,2]
[329941369,1718850265465,-786.54,0.00013698,2]
[329941370,1718850265487,-500.0,0.00013698,2]
[329941371,1718850265510,-1440.25,0.00013698,2]
[329941372,1718850265531,-312.54408373,0.00013698,2]
[329941373,1718850265553,-505.38179753,0.00013698,2]
[329941374,1718850265577,-500.0,0.00013698,2]
[329941375,1718850265599,-2453.0,0.00013698,2]
[329941376,1718850265621,-500.0,0.00013698,2]
[329941377,1718850265643,-500.0,0.00013698,2]
[329941378,1718850265665,-510.11161523,0.00013698,2]
[329941379,1718850265687,-2908.61,0.00013698,2]
[329941380,1718850265709,-500.0,0.00013698,2]
[329941381,1718850265731,-500.0,0.00013698,2]
[329941382,1718850265754,-500.0,0.00013698,2]
[329941383,1718850265775,-502.12870759,0.00013698,2]
[329941384,1718850265796,-500.0,0.00013698,2]
[329941385,1718850265818,-500.0,0.00013698,2]
[329941386,1718850265841,-500.0,0.00013698,2]
[329941387,1718850265863,-169.91431863,0.00013698,2]
[329941388,1718850268572,297.99741879,0.0002,30]
[329941389,1718850285896,297.99741879,0.0002,30]
[329941390,1718850303880,297.99741879,0.0002,30]
[329941392,1718850323889,297.99741879,0.0002,30]
[329941393,1718850341913,297.99741879,0.0002,30]
[329941394,1718850361913,297.99741879,0.0002,30]
[329941395,1718850362585,500.0,0.00024,30]
[329941396,1718850377999,297.99741879,0.0002,30]
[329941397,1718850379368,500.0,0.00024,30]
[329941398,1718850397891,297.99741879,0.0002,30]
[329941399,1718850415945,297.99741879,0.0002,30]
[329941400,1718850425898,1333.0,0.00025,60]
[329941401,1718850440063,360.60945346,0.0002,30]
[329941404,1718850462086,801.5,0.00025,60]
[329941409,1718850512885,184.28548028,0.00026,90]
[329941494,1718850638251,-14.40564383,0.00010944,2]
[329941495,1718850638849,-314.12435617,0.00010944,2]
[329941496,1718850638858,-500.0,0.00012328,2]
[329941497,1718850638868,-250.0,0.00012796,2]
[329941498,1718850638877,-184.72594928,0.00012875,2]
[329941499,1718850638888,-554.0769974,0.00012875,2]
[329941504,1718850640863,-313.19705332,0.00012875,2]
[329941505,1718850640873,-4815.54362385,0.00012927,2]
[329941506,1718850640883,-328.53,0.00013208,2]
[329941507,1718850640893,-3000.0,0.0001357,2]
[329941508,1718850640903,-300.0,0.00013597,2]
[329941509,1718850640913,-857.05366614,0.00013598,2]
[329941510,1718850640924,-3322.76552063,0.00013598,2]
[329941511,1718850640935,-1259.0183075,0.00013598,2]
[329941512,1718850641315,-2918.21617187,0.00013598,2]
[329941513,1718850641325,-852.48,0.000136,2]
[329941514,1718850641335,-857.05366608,0.00013641,2]
[329941515,1718850641344,-800.0,0.00013671,2]
[329941516,1718850641354,-800.0,0.00013671,2]
[329941517,1718850641364,-800.0,0.00013671,2]
[329941518,1718850641373,-800.0,0.00013671,2]
[329941519,1718850641383,-857.05366608,0.00013684,2]
[329941520,1718850641392,-500.0,0.00013698,2]
[329941521,1718850641402,-502.28038575,0.00013698,2]
[329941522,1718850641411,-504.0629159,0.00013698,2]
[329941523,1718850641421,-600.96,0.00013698,2]
[329941524,1718850641430,-503.31884223,0.00013698,2]
[329941525,1718850641440,-503.475321,0.00013698,2]
[329941526,1718850641452,-1121.11,0.00013698,2]
[329941527,1718850641462,-500.0,0.00013698,2]
[329941528,1718850641471,-500.0,0.00013698,2]
[329941529,1718850641480,-510.02444582,0.00013698,2]
[329941530,1718850641489,-500.0,0.00013698,2]
[329941531,1718850641499,-500.0,0.00013698,2]
[329941532,1718850641509,-500.0,0.00013698,2]
[329941533,1718850641519,-517.51,0.00013698,2]
[329941534,1718850641529,-507.24393631,0.00013698,2]
[329941535,1718850641539,-870.65,0.00013698,2]
[329941536,1718850641549,-507.03244513,0.00013698,2]
[329941537,1718850641558,-511.17697638,0.00013698,2]
[329941538,1718850641568,-119.08277206,0.00013698,2]
[329941539,1718850642143,-388.20923757,0.00013698,2]
[329941540,1718850642153,-500.0,0.00013698,2]
[329941541,1718850642162,-500.0,0.00013698,2]
[329941542,1718850642172,-603.83,0.00013698,2]
[329941543,1718850642183,-500.0,0.00013698,2]
[329941544,1718850642192,-500.0,0.00013698,2]
[329941545,1718850642206,-501.09354843,0.00013698,2]
[329941546,1718850642216,-497.69077245,0.00013698,2]
[329941547,1718850642225,-501.7826752,0.00013698,2]
[329941548,1718850642236,-237.52120161,0.00013698,2]
[329941551,1718850643176,-294.15879839,0.00013698,2]
[329941552,1718850643186,-113.30400527,0.00013698,2]
[329941561,1718850643655,-278.09439755,0.00013698,2]
[329941586,1718850735920,3600.0,0.00025,60]
[329941587,1718851333028,173.062011,0.00025,75]
[329941588,1718851450729,10000.0,0.00025,90]
[329941650,1718851832954,-155.0,0.00010594,2]
[329941651,1718851832967,-217.7714529,0.00010594,2]
[329941652,1718851832978,-2157.6121263,0.00010595,2]
[329941653,1718851832991,-903.55095595,0.00010595,2]
[329941654,1718851833005,-518.40021227,0.00010595,2]
[329941655,1718851833018,-192.43670548,0.00010595,2]
[329941656,1718851833030,-366.69,0.00010599,2]
[329941657,1718851833042,-4381.06339652,0.000118,2]
[329941658,1718851833056,-2960.75103134,0.000118,2]
[329941659,1718851833069,-1181.42468244,0.000118,2]
[329941660,1718851833082,-1133.16129937,0.000118,2]
[329941661,1718851833095,-15619.67306731,0.000118,2]
[329941662,1718851833108,-3301.85269922,0.000118,2]
[329941663,1718851833118,-250.0,0.00012118,2]
[329941664,1718851833129,-169.94,0.00012151,2]
[329941665,1718851833141,-150.0,0.00012156,2]
[329941666,1718851833153,-811.57,0.00012252,2]
[329941667,1718851833164,-931.97516373,0.00012282,2]
[329941668,1718851833176,-1916.80238943,0.00012282,2]
[329941669,1718851833189,-1178.45951756,0.00012282,2]
[329941670,1718851833204,-454.84292928,0.00012282,2]
[329941671,1718851833215,-92.5943524,0.000123,2]
[329941672,1718851833229,-1421.18809713,0.000123,2]
[329941673,1718851833242,-558.15546194,0.000123,2]
[329941674,1718851833256,-1266.60175907,0.000123,2]
[329941675,1718851833268,-1924.54195165,0.000123,2]
[329941676,1718851833279,-150.0,0.00012329,2]
[329941677,1718851833290,-2046.52958408,0.00012351,2]
[329941678,1718851833304,-8034.33041592,0.00012351,2]
[329941679,1718851833314,-175.44,0.00012375,2]
[329941680,1718851833325,-250.0,0.00012389,2]
[329941681,1718851833336,-1000.0,0.00012392,2]
[329941682,1718851833346,-366.65,0.00012392,2]
[329941683,1718851833357,-175.44,0.0001259,2]
[329941684,1718851833367,-852.48,0.000126,2]
[329941685,1718851833378,-168.2,0.00012761,2]
[329941686,1718851833388,-175.44,0.00012805,2]
[329941687,1718851833399,-366.69,0.00012863,2]
[329941688,1718851833410,-597.09099106,0.00013,2]
[329941689,1718851833421,-175.44,0.00013019,2]
[329941690,1718851833432,-852.48,0.00013041,2]
[329941691,1718851833442,-526.21,0.00013041,2]
[329941692,1718851833453,-150.0,0.00013352,2]
[329941693,1718851833463,-3029.6415,0.00013597,2]